bitfinex/quotes_SOLUSD_20250522
["timestamp","ask_amount","ask_price","bid_price","bid_amount"]
[1747940992465,34.9430955,179.09,179.01,111.23822064]
[1747940992670,0.14216157,179.07,179.01,111.23822064]
[1747940992864,15.47822064,179.11,179.01,111.23822064]
[1747940992865,0.14216157,179.08,179.01,111.23822064]
[1747940993071,0.14216157,179.08,179.05,15.47822064]
[1747940993257,0.14216157,179.08,179.06,15.47822064]
[1747940993567,0.14216157,179.09,179.06,15.47822064]
[1747940993746,0.14216157,179.09,179.06,24.30338081]
[1747940993944,0.14216157,179.09,179.05,24.30338081]
[1747940994447,0.14216157,179.06,179.05,24.30338081]
[1747940995662,24.37653063,179.06,179.05,24.30338081]
[1747940996048,38.33833114,179.06,179.04,24.30338081]
[1747940996247,38.33833114,179.06,178.99,26.0]
[1747940996463,38.33833114,179.06,179.03,24.30338081]
[1747940998951,38.33833114,179.06,179.03,57.80338081]
[1747940999438,0.14216157,179.04,178.99,36.22]
[1747940999640,18.64964886,179.03,178.91,6.4848]
[1747940999840,24.44554238,179.04,178.88,209.18]
[1747940999841,24.30338081,178.95,178.88,209.18]
[1747941000072,43.09519124,178.94,178.89,57.80338081]
[1747941000243,18.79181043,178.92,178.89,33.5]
[1747941000752,18.64964886,178.93,178.89,57.80338081]
[1747941000947,18.64964886,178.93,178.9,24.30338081]
[1747941001779,18.64964886,178.93,178.89,33.5]
[1747941001946,5.58909009,178.92,178.89,57.80338081]
[1747941002150,5.58909009,178.92,178.91,24.30338081]
[1747941002452,5.58909009,178.92,178.9,24.30338081]
[1747941002656,5.58909009,178.92,178.89,33.5]
[1747941003578,18.79181043,178.92,178.9,33.5]
[1747941004879,5.58940249,178.91,178.9,33.5]
[1747941006171,5.58940249,178.91,178.88,26.0]
[1747941006360,5.58940249,178.91,178.89,33.5]
[1747941007283,18.79181043,178.9,178.84,36.22]
[1747941007572,24.34613624,178.87,178.85,33.5]
[1747941008373,24.34613624,178.87,178.81,26.0]
[1747941008554,24.34613624,178.87,178.82,33.5]
[1747941008755,19.5683775,178.86,178.82,33.5]
[1747941009378,19.5683775,178.86,178.82,59.5]
[1747941009753,5.590965,178.86,178.85,26.0]
[1747941010160,5.58940249,178.91,178.85,26.0]
[1747941010365,5.58940249,178.91,178.87,26.0]
[1747941010666,13.97350623,178.91,178.88,33.5]
[1747941012274,13.97350623,178.91,178.87,33.5]
[1747941012877,19.56290872,178.91,178.87,33.5]
[1747941014293,19.56290872,178.91,178.86,26.0]
[1747941014459,19.56290872,178.91,178.86,59.5]
[1747941014966,13.97350623,178.91,178.86,59.5]
[1747941022565,13.97350623,178.91,178.86,26.0]
[1747941022764,13.97350623,178.91,178.87,71.2]
[1747941025070,18.79181043,178.9,178.86,26.0]
[1747941025271,24.34613624,178.89,178.83,37.7]
[1747941025480,43.13794667,178.86,178.83,37.7]
[1747941025671,34.25710154,178.86,178.83,37.7]
[1747941025988,18.79181043,178.88,178.83,37.7]
[1747941026174,18.79181043,178.88,178.82,33.5]
[1747941026571,18.79181043,178.86,178.82,33.5]
[1747941026774,18.79181043,178.86,178.81,26.0]
[1747941026978,18.79181043,178.86,178.82,33.5]
[1747941027287,18.79181043,178.86,178.81,26.0]
[1747941027490,18.79181043,178.86,178.82,33.5]
[1747941027702,18.79181043,178.86,178.83,24.36615029]
[1747941028790,5.5912776,178.85,178.84,24.36615029]
[1747941030981,18.79181043,178.86,178.84,24.36615029]
[1747941031184,18.79181043,178.86,178.83,24.36615029]
[1747941031379,13.97663107,178.87,178.84,24.36615029]
[1747941031690,13.97663107,178.87,178.85,24.36615029]
[1747941032076,13.97663107,178.87,178.84,24.36615029]
[1747941032813,18.79181043,178.86,178.84,24.36615029]
[1747941032995,5.5912776,178.85,178.84,24.36615029]
[1747941033901,18.79181043,178.84,178.79,37.7]
[1747941034104,18.79181043,178.84,178.8,57.88615029]
[1747941034681,18.79181043,178.84,178.8,24.36615029]
[1747941034999,19.57166023,178.83,178.81,24.36615029]
[1747941035902,47.53117485,178.83,178.8,24.36615029]
[1747941036077,47.53117485,178.83,178.79,83.88615029]
[1747941036483,47.53117485,178.83,178.79,50.36615029]
[1747941036893,47.53117485,178.83,178.8,24.36615029]
[1747941038104,18.79181043,178.82,178.77,26.0]
[1747941038304,154.933972,178.82,178.71,6.551]
[1747941038507,154.933972,178.82,178.73,37.66]
[1747941038508,18.79181043,178.79,178.73,37.66]
[1747941038710,43.15796072,178.77,178.67,6.551]
[1747941038899,18.79181043,178.75,178.7,24.36615029]
[1747941039294,19.58151504,178.74,178.7,24.36615029]
[1747941039610,19.58151504,178.74,178.71,24.36615029]
[1747941039786,19.58151504,178.74,178.7,24.36615029]
[1747941040605,43.94766533,178.74,178.69,83.88615029]
[1747941040811,18.79181043,178.73,178.69,50.36615029]
[1747941041011,18.79181043,178.73,178.69,24.36615029]
[1747941041388,19.58370635,178.72,178.7,24.36615029]
[1747941041797,19.58370635,178.72,178.68,33.52]
[1747941041999,19.58370635,178.72,178.69,24.36615029]
[1747941042316,19.58370635,178.72,178.7,24.36615029]
[1747941046619,19.58370635,178.72,178.69,24.36615029]
[1747941048122,19.58370635,178.72,178.7,24.36615029]
[1747941049692,19.58370635,178.72,178.7,15.48755083]
[1747941051827,19.58370635,178.72,178.71,15.48755083]
[1747941056026,5.59471858,178.74,178.71,15.48755083]
[1747941056259,5.59471858,178.74,178.73,15.48755083]
[1747941056429,5.59471858,178.74,178.73,49.02755083]
[1747941056605,5.59471858,178.74,178.73,33.54]
[1747941056800,5.59471858,178.74,178.73,49.02755083]
[1747941058129,13.9863252,178.75,178.73,49.02755083]
[1747941058423,13.9863252,178.75,178.74,15.48755083]
[1747941059914,13.9863252,178.75,178.7,26.0]
[1747941060121,13.9863252,178.75,178.73,15.48755083]
[1747941060809,32.77813563,178.75,178.74,15.48755083]
[1747941061513,13.9863252,178.75,178.74,15.48755083]
[1747941062530,13.9863252,178.75,178.74,49.02755083]
[1747941062910,5.59377971,178.77,178.74,49.02755083]
[1747941063143,5.59377971,178.77,178.76,15.48755083]
[1747941064035,19.57384933,178.81,178.76,15.48755083]
[1747941064244,19.57384933,178.81,178.77,33.54]
[1747941065042,19.57384933,178.81,178.8,15.48755083]
[1747941067312,19.57384933,178.81,178.77,59.54]
[1747941067556,19.57384933,178.81,178.8,15.48755083]
[1747941078057,18.79181043,178.8,178.74,37.1]
[1747941078238,18.79181043,178.8,178.76,15.48755083]
[1747941078663,18.79181043,178.8,178.77,15.48755083]
[1747941079358,19.57603891,178.79,178.74,96.62]
[1747941079540,19.57603891,178.79,178.76,15.48755083]
[1747941082269,18.79181043,178.78,178.69,1.5838]
[1747941082440,170.27936126,178.78,178.72,15.48755083]
[1747941082766,170.27936126,178.78,178.73,15.48755083]
[1747941083780,5.59377971,178.77,178.73,15.48755083]
[1747941083981,63.17683998,178.77,178.71,15.48755083]
[1747941084949,63.17683998,178.77,178.72,15.48755083]
[1747941085268,47.68928915,178.77,178.72,15.48755083]
[1747941085768,75.65818773,178.77,178.72,15.48755083]
[1747941086069,75.65818773,178.77,178.7,26.0]
[1747941086070,75.65818773,178.77,178.73,15.48755083]
[1747941086266,75.51602616,178.77,178.74,15.48755083]
[1747941086470,94.30783659,178.77,178.76,15.48755083]
[1747941086773,19.578229,178.77,178.76,15.48755083]
[1747941088373,13.98444929,178.77,178.76,41.48755083]
[1747941089842,13.98444929,178.77,178.76,75.02755083]
[1747941090258,27.96576989,178.79,178.76,75.02755083]
[1747941090493,27.96576989,178.79,178.78,15.48755083]
[1747941094783,27.96576989,178.79,178.77,33.54]
[1747941094969,27.96576989,178.79,178.78,15.48755083]
[1747941103694,27.96576989,178.79,178.77,15.48755083]
[1747941104187,18.79181043,178.78,178.74,15.48755083]
[1747941105182,5.59377971,178.77,178.74,15.48755083]
[1747941105397,5.59377971,178.77,178.75,15.48755083]
[1747941105578,19.578229,178.77,178.76,15.48755083]
[1747941105774,5.59377971,178.77,178.76,17.14555083]
[1747941106274,27.9556003,178.86,178.79,26.0]
[1747941106472,5.5912776,178.85,178.84,15.48755083]
[1747941106670,19.56947161,178.85,178.83,15.48755083]
[1747941107484,13.97819401,178.85,178.83,15.48755083]
[1747941108193,13.97819401,178.85,178.84,15.48755083]
[1747941112401,38.35690629,178.89,178.84,15.48755083]
[1747941112575,66.30704324,178.89,178.86,15.48755083]
[1747941117102,66.30704324,178.89,178.85,15.48755083]
[1747941117291,66.30704324,178.89,178.84,15.48755083]
[1747941117494,66.30704324,178.89,178.85,15.48755083]
[1747941118205,66.30704324,178.89,178.86,15.48755083]
[1747941118385,66.30704324,178.89,178.83,33.52]
[1747941118584,66.30704324,178.89,178.86,15.48755083]
[1747941121411,19.56509586,178.89,178.88,15.48755083]
[1747941121785,19.56509586,178.89,178.88,41.48755083]
[1747941122387,27.94638812,178.92,178.88,41.48755083]
[1747941122586,19.55962891,178.94,178.91,15.48755083]
[1747941122785,19.55962891,178.94,178.92,15.48755083]
[1747941124002,38.35143934,178.94,178.93,15.48755083]
[1747941128298,13.97116351,178.94,178.93,15.48755083]
[1747941131200,5.58815311,178.95,178.93,51.70755083]
[1747941131412,13.96677855,179.0,178.96,26.0]
[1747941131632,13.96677855,179.0,178.99,41.48755083]
[1747941131917,13.96677855,179.0,178.99,77.70755083]
[1747941132125,5.58596804,179.02,178.99,83.97725083]
[1747941132304,5.58596804,179.02,179.01,15.48755083]
[1747941132511,28.06359137,179.08,179.01,15.48755083]
[1747941132512,19.54542915,179.07,179.01,15.48755083]
[1747941132719,38.19507801,179.07,179.06,15.48755083]
[1747941133495,38.19507801,179.07,179.05,15.48755083]
[1747941134107,38.19507801,179.07,179.06,15.48755083]
[1747941134314,19.54542915,179.07,179.06,15.48755083]
[1747941134610,13.96102082,179.07,179.06,48.98755083]
[1747941135416,13.96102082,179.07,179.06,41.48755083]
[1747941135623,13.96102082,179.07,179.06,111.20755083]
[1747941136509,0.14216157,179.12,179.06,111.20755083]
[1747941136711,0.14216157,179.12,179.08,15.48755083]
[1747941137018,0.14216157,179.12,179.09,15.48755083]
[1747941137618,18.64964886,179.11,179.09,15.48755083]
[1747941138525,5.58347292,179.1,179.09,15.48755083]
[1747941138702,19.54215522,179.1,179.07,15.48755083]
[1747941139610,19.54215522,179.1,179.08,15.48755083]
[1747941140421,19.54215522,179.1,179.07,15.48755083]
[1747941140799,5.58409649,179.08,179.07,15.48755083]
[1747941141129,5.58409649,179.08,179.06,41.48755083]
[1747941141304,5.58409649,179.08,179.07,15.48755083]
[1747941145222,27.91456769,179.12,179.1,26.0]
[1747941145434,27.91456769,179.12,179.11,15.48755083]
[1747941146613,19.53779166,179.14,179.11,15.48755083]
[1747941146818,19.53779166,179.14,179.13,15.48755083]
[1747941147216,13.95556547,179.14,179.12,15.48755083]
[1747941148523,13.95556547,179.14,179.13,15.48755083]
[1747941150825,13.95556547,179.14,179.12,48.96755083]
[1747941151353,13.95556547,179.14,179.13,15.48755083]
[1747941152954,13.95556547,179.14,179.12,15.48755083]
[1747941153245,13.95556547,179.14,179.11,69.66]
[1747941153715,13.95556547,179.14,179.11,85.14755083]
[1747941154036,13.95556547,179.14,179.12,15.48755083]
[1747941154534,32.60521433,179.14,179.08,27.5018]
[1747941154722,34.13719969,179.13,179.09,33.46]
[1747941154912,18.64964886,179.13,179.08,51.66755083]
[1747941155733,19.53997319,179.12,179.09,15.48755083]
[1747941155916,35.02752402,179.12,179.08,36.18]
[1747941156712,35.02752402,179.12,179.08,69.64]
[1747941157337,19.53997319,179.12,179.08,85.12755083]
[1747941157523,19.53997319,179.12,179.08,111.12755083]
[1747941159152,19.53997319,179.12,179.11,41.48755083]
[1747941159324,19.53997319,179.12,179.11,59.46]
[1747941159531,19.53997319,179.12,179.11,74.94755083]
[1747941160136,19.53997319,179.12,179.11,59.46]
[1747941161048,75.35584704,179.15,179.11,59.46]
[1747941161247,19.53670108,179.15,179.12,15.48755083]
[1747941161656,19.53670108,179.15,179.11,59.46]
[1747941161831,19.53670108,179.15,179.12,15.48755083]
[1747941162025,19.53670108,179.15,179.11,59.46]
[1747941162344,19.53670108,179.15,179.12,15.48755083]
[1747941163148,13.95478649,179.15,179.12,15.48755083]
[1747941163646,13.95478649,179.15,179.11,59.46]
[1747941164951,13.95478649,179.15,179.12,36.54]
[1747941165541,13.95478649,179.15,179.14,26.0]
[1747941166437,13.95478649,179.15,179.14,59.46]
[1747941170371,18.64964886,179.14,179.05,208.8]
[1747941170540,15.40901839,179.13,179.09,36.54]
[1747941170737,15.40901839,179.13,179.09,96.0]
[1747941171458,15.40901839,179.13,179.09,62.54]
[1747941171761,15.40901839,179.12,179.09,70.0]
[1747941172271,5.58284948,179.12,179.09,70.0]
[1747941179061,5.58284948,179.12,179.11,26.0]
[1747941179569,13.95707323,179.13,179.11,26.0]
[1747941179758,13.95707323,179.13,179.12,33.46]
[1747941180681,5.58191459,179.15,179.12,33.46]
[1747941181186,5.58191459,179.15,179.14,26.0]
[1747941181699,13.95220417,179.19,179.15,26.0]
[1747941181843,13.95220417,179.19,179.18,26.0]
[1747941183175,5.58004575,179.21,179.19,26.0]
[1747941183356,5.58004575,179.21,179.2,33.46]
[1747941183684,27.89814487,179.23,179.2,33.46]
[1747941185884,43.30716326,179.23,179.2,33.46]
[1747941186486,15.40901839,179.21,179.15,26.0]
[1747941186772,15.40901839,179.21,179.19,36.52]
[1747941186950,15.40901839,179.2,179.18,69.98]
[1747941187152,27.89814487,179.23,179.18,36.52]
[1747941187465,15.40901839,179.19,179.18,36.52]
[1747941187865,20.98968695,179.19,179.18,36.52]
[1747941188063,5.58066856,179.19,179.18,36.52]
[1747941188454,19.53233997,179.19,179.17,95.98]
[1747941189078,15.40901839,179.18,179.17,95.98]
[1747941189246,15.40901839,179.18,179.13,36.52]
[1747941189451,15.40901839,179.14,179.13,36.52]
[1747941189957,20.99124458,179.14,179.13,36.52]
[1747941190680,5.58222619,179.14,179.13,36.52]
[1747941190990,20.99124458,179.14,179.13,36.52]
[1747941191154,20.99124458,179.14,179.11,69.98]
[1747941191155,62.857941,179.14,179.11,69.98]
[1747941191480,15.40901839,179.13,179.11,69.98]
[1747941191859,15.40901839,179.12,179.11,36.2]
[1747941192070,20.99186787,179.12,179.11,36.2]
[1747941194957,34.94899158,179.12,179.08,26.0]
[1747941195270,19.53997319,179.12,179.11,26.0]
[1747941195579,34.94899158,179.12,179.11,26.0]
[1747941196168,19.53997319,179.12,179.11,26.0]
[1747941197950,34.94899158,179.12,179.11,26.0]
[1747941199968,34.94899158,179.12,179.11,59.46]
[1747941201368,34.94899158,179.12,179.08,26.0]
[1747941201586,19.53997319,179.12,179.11,26.0]
[1747941201880,34.94899158,179.12,179.11,26.0]
[1747941203873,19.53997319,179.12,179.11,26.0]
[1747941204074,47.44097783,179.17,179.12,26.0]
[1747941204292,15.40901839,179.14,179.12,59.46]
[1747941205570,15.40901839,179.13,179.12,59.46]
[1747941206291,20.99155621,179.13,179.12,59.46]
[1747941206871,20.99155621,179.13,179.12,26.0]
[1747941208102,20.99155621,179.13,179.1,33.46]
[1747941208300,15.40901839,179.11,179.1,26.0]
[1747941209969,20.99217957,179.11,179.1,26.0]
[1747941215793,34.95008253,179.11,179.03,208.8]
[1747941215991,15.40901839,179.1,179.05,69.66]
[1747941216296,19.5432464,179.09,179.08,26.0]
[1747941217600,13.95946172,179.09,179.08,26.0]
[1747941218309,13.95946172,179.09,179.08,59.46]
[1747941221706,13.95946172,179.09,179.08,26.0]
[1747941222097,13.95946172,179.09,179.04,26.0]
[1747941222409,13.95946172,179.09,179.07,62.2]
[1747941223516,15.40901839,179.1,179.07,62.2]
[1747941224606,5.58378468,179.09,179.07,62.2]
[1747941225518,62.87118823,179.09,179.02,1.6323]
[1747941225699,62.87118823,179.09,179.03,69.66]
[1747941225898,62.87118823,179.09,179.04,26.0]
[1747941226203,47.46216984,179.09,179.03,69.66]
[1747941226414,47.46216984,179.09,179.04,26.0]
[1747941226712,47.46216984,179.09,179.05,33.46]
[1747941227212,57.28740355,179.09,179.05,33.46]
[1747941228507,41.87838516,179.09,179.05,33.46]
[1747941229210,47.46216984,179.09,179.05,33.46]
[1747941229714,62.87118823,179.09,179.05,33.46]
[1747941232117,62.87118823,179.09,179.04,26.0]
[1747941232420,62.87118823,179.09,179.04,59.48]
[1747941233597,62.87118823,179.09,179.04,26.0]
[1747941233803,62.87118823,179.09,179.04,59.48]
[1747941234601,47.46216984,179.09,179.04,59.48]
[1747941240205,62.87118823,179.09,179.04,59.48]
[1747941240523,62.87118823,179.09,179.04,26.0]
[1747941241021,15.40901839,179.08,179.04,59.48]
[1747941242013,5.58440833,179.07,179.04,26.0]
[1747941242215,5.58440833,179.07,179.03,69.68]
[1747941242216,34.95444754,179.07,179.03,69.68]
[1747941246537,5.58284948,179.12,179.07,26.0]
[1747941246838,5.58284948,179.12,179.11,26.0]
[1747941247033,19.53397703,179.18,179.11,69.7]
[1747941248623,13.95299701,179.18,179.11,69.7]
[1747941249615,13.95299701,179.18,179.14,26.0]
[1747941249823,13.95299701,179.18,179.14,59.46]
[1747941252653,15.40901839,179.17,179.06,0.55814311]
[1747941252943,15.40901839,179.17,179.1,26.0]
[1747941253142,19.53561062,179.16,179.11,33.46]
[1747941253333,19.53561062,179.16,179.05,218.29393252]
[1747941253537,19.53561062,179.16,179.06,69.64]
[1747941253925,19.53561062,179.16,179.09,26.0]
[1747941254134,19.53561062,179.16,179.1,33.46]
[1747941254439,62.85264419,179.16,179.1,33.46]
[1747941254942,62.85264419,179.16,179.08,26.0]
[1747941255146,62.85264419,179.16,179.1,69.64]
[1747941256452,47.4436258,179.16,179.1,69.64]
[1747941261839,62.85264419,179.16,179.1,69.64]
[1747941262146,18.79181043,179.15,179.1,69.64]
[1747941262655,18.79181043,179.15,179.1,33.46]
[1747941263860,19.53779166,179.14,179.09,36.18]
[1747941265450,47.44892261,179.14,179.08,26.0]
[1747941265765,47.44892261,179.14,179.09,36.18]
[1747941266253,18.79181043,179.13,179.08,26.0]
[1747941266473,34.20082882,179.13,179.08,26.0]
[1747941266953,18.79181043,179.13,179.08,26.0]
[1747941268259,19.53997319,179.12,179.08,26.0]
[1747941269260,15.40901839,179.1,179.05,208.84]
[1747941269462,18.79181043,179.09,179.05,208.84]
[1747941270162,34.05866725,179.11,179.05,208.84]
[1747941270397,62.86323901,179.12,179.05,208.84]
[1747941270671,47.45422062,179.12,179.05,208.84]
[1747941272058,62.86323901,179.12,179.05,208.84]
[1747941272652,34.20082882,179.11,179.06,69.64]
[1747941273261,18.79181043,179.11,179.06,69.64]
[1747941273771,19.54215522,179.1,179.06,69.64]
[1747941274158,19.54215522,179.1,179.07,26.0]
[1747941275572,13.9586823,179.1,179.07,26.0]
[1747941280662,27.91113095,179.14,179.07,26.0]
[1747941280967,18.79181043,179.13,179.07,26.0]
[1747941281157,18.79181043,179.13,179.04,26.0]
[1747941281356,18.79181043,179.13,179.08,26.0]
[1747941281662,34.20082882,179.13,179.08,26.0]
[1747941282179,18.79181043,179.13,179.08,26.0]
[1747941283381,19.53997319,179.12,179.08,26.0]
[1747941285380,13.95712371,179.12,179.08,26.0]
[1747941289015,13.95712371,179.12,179.1,26.0]
[1747941289361,13.95712371,179.12,179.11,69.62]
[1747941289885,47.44627406,179.15,179.11,69.62]
[1747941295582,41.86435947,179.15,179.11,69.62]
[1747941297597,41.86435947,179.15,179.06,1.5301]
[1747941297778,41.86435947,179.15,179.08,26.0]
[1747941299500,41.86435947,179.15,179.07,26.0]
[1747941299672,47.44627406,179.15,179.11,26.0]
[1747941299878,47.44627406,179.15,179.11,59.46]
[1747941300302,62.85529245,179.15,179.07,26.0]
[1747941300501,62.85529245,179.15,179.11,26.0]
[1747941301015,15.40901839,179.14,179.09,33.46]
[1747941301184,15.40901839,179.11,179.05,36.16]
[1747941301374,18.79181043,179.13,179.06,59.46]
[1747941301579,34.20082882,179.13,179.06,59.46]
[1747941301874,19.53997319,179.12,179.06,59.46]
[1747941302286,19.53997319,179.12,179.09,26.0]
[1747941302577,19.53997319,179.12,179.1,33.46]
[1747941303314,5.58284948,179.12,179.1,33.46]
[1747941303598,5.58284948,179.12,179.11,62.16]
[1747941303804,15.40901839,179.16,179.11,95.62]
[1747941304037,18.79181043,179.17,179.11,95.62]
[1747941304193,27.90771336,179.17,179.11,95.62]
[1747941305610,43.31673175,179.17,179.11,95.62]
[1747941305929,62.85125203,179.17,179.11,95.62]
[1747941306817,62.85125203,179.17,179.11,26.0]
[1747941306985,15.40901839,179.15,179.11,26.0]
[1747941307378,15.40901839,179.14,179.1,36.16]
[1747941307614,20.39531043,179.16,179.07,69.62]
[1747941307615,15.40901839,179.12,179.07,69.62]
[1747941307828,15.40901839,179.12,179.07,36.16]
[1747941307998,19.54106414,179.11,179.07,36.16]
[1747941310924,34.95008253,179.11,179.07,36.16]
[1747941311635,15.40901839,179.1,179.04,26.0]
[1747941311934,15.40901839,179.1,179.05,36.16]
[1747941312731,18.79181043,179.1,179.05,36.16]
[1747941313924,19.5432464,179.09,179.05,36.16]
[1747941315900,13.95946172,179.09,179.05,36.16]
[1747941318641,27.91580592,179.11,179.05,36.16]
[1747941318821,18.79181043,179.1,179.05,36.16]
[1747941320109,27.91580592,179.11,179.05,36.16]
[1747941321139,47.45687006,179.11,179.05,36.16]
[1747941324051,19.54106414,179.11,179.08,26.0]
[1747941324219,5.58316118,179.11,179.08,59.48]
[1747941325845,5.58222619,179.14,179.09,95.62]
[1747941326030,19.53779166,179.14,179.09,95.62]
[1747941328150,13.95556547,179.14,179.09,95.62]
[1747941328656,13.95556547,179.14,179.09,69.62]
[1747941328823,0.14216157,179.11,179.02,9.60993252]
[1747941329024,15.40901839,179.1,179.05,36.14]
[1747941330145,13.95946172,179.09,179.05,36.14]
[1747941338774,13.95946172,179.09,179.05,69.62]
[1747941340477,13.95946172,179.09,179.04,26.0]
[1747941340478,29.36848011,179.09,179.04,26.0]
[1747941340771,13.95946172,179.09,179.05,36.14]
[1747941344462,5.58347292,179.1,179.08,26.0]
[1747941344649,5.58347292,179.1,179.08,59.48]
[1747941345263,47.44674893,179.15,179.08,59.48]
[1747941345867,19.53670108,179.15,179.09,1.5314]
[1747941346952,47.43568279,179.19,179.09,1.5314]
[1747941347670,62.84470118,179.19,179.09,1.5314]
[1747941348172,47.43568279,179.19,179.09,1.5314]
[1747941350971,34.20082882,179.18,179.09,1.5314]
[1747941351155,34.20082882,179.18,179.13,26.0]
[1747941351966,18.79181043,179.18,179.13,26.0]
[1747941352376,34.20082882,179.18,179.13,26.0]
[1747941353268,19.53452028,179.17,179.13,26.0]
[1747941354069,47.44097783,179.17,179.12,26.0]
[1747941354446,62.84999622,179.17,179.12,26.0]
[1747941354969,62.84999622,179.17,179.04,97.33045329]
[1747941354970,18.79181043,179.12,179.06,36.12]
[1747941355180,34.20082882,179.12,179.07,26.0]
[1747941355381,19.54106414,179.11,179.07,26.0]
[1747941355748,34.95008253,179.11,179.06,36.12]
[1747941355947,19.54106414,179.11,179.06,62.12]
[1747941356251,19.54106414,179.11,179.06,36.12]
[1747941356445,19.54106414,179.11,179.06,62.12]
[1747941357369,34.95008253,179.11,179.06,62.12]
[1747941357555,19.54106414,179.11,179.06,62.12]
[1747941357760,34.95008253,179.11,179.06,62.12]
[1747941358648,34.20082882,179.1,179.05,36.12]
[1747941358850,15.40901839,179.08,179.04,26.0]
[1747941359459,5.58440833,179.07,179.04,26.0]
[1747941360683,19.54504343,179.08,179.04,26.0]
[1747941360984,19.54504343,179.08,179.03,36.12]
[1747941360985,15.40901839,179.06,179.03,36.12]
[1747941362182,34.20082882,179.07,179.03,36.12]
[1747941362859,5.5847202,179.06,179.03,36.12]
[1747941364960,19.54542915,179.07,179.03,36.12]
[1747941365367,19.54542915,179.07,179.02,69.6]
[1747941371383,13.96102082,179.07,179.02,69.6]
[1747941371610,13.96102082,179.07,179.03,26.0]
[1747941372659,47.45687006,179.11,179.03,26.0]
[1747941373779,18.79181043,179.1,179.03,26.0]
[1747941373987,15.40901839,179.09,179.04,36.12]
[1747941374360,34.20082882,179.1,179.04,36.12]
[1747941375187,34.95226479,179.09,179.04,36.12]
[1747941376177,62.87118823,179.09,179.01,26.0]
[1747941376385,62.87118823,179.09,179.02,36.1]
[1747941376568,15.40901839,179.07,178.98,1.6255]
[1747941376887,15.55117996,179.06,178.99,69.58]
[1747941377384,19.54761239,179.05,179.0,26.0]
[1747941377771,47.47277295,179.05,179.0,26.0]
[1747941377969,62.88179134,179.05,178.99,36.1]
[1747941378383,47.47277295,179.05,178.99,36.1]
[1747941380179,62.88179134,179.05,178.99,36.1]
[1747941385600,15.40901839,179.03,178.99,36.1]
[1747941385892,15.40901839,179.02,178.99,36.1]
[1747941387801,5.58628009,179.01,178.99,36.1]
[1747941390493,20.99529848,179.01,178.99,36.1]
[1747941392176,5.58628009,179.01,178.99,36.1]
[1747941394291,34.95953799,179.03,178.99,36.1]
[1747941394778,34.20082882,179.02,178.99,36.1]
[1747941394980,34.20082882,179.02,178.96,26.0]
[1747941395183,34.20082882,179.02,178.96,62.1]
[1747941395491,170.20082882,179.02,178.96,62.1]
[1747941395693,34.20082882,179.0,178.96,36.1]
[1747941396932,18.79181043,178.98,178.96,36.1]
[1747941397214,18.79181043,178.96,178.91,36.12]
[1747941397382,15.40901839,178.95,178.91,36.12]
[1747941397577,18.79181043,178.94,178.91,36.12]
[1747941397798,15.55117996,178.94,178.91,36.12]
[1747941398225,18.79181043,178.92,178.91,36.12]
[1747941398392,34.20082882,178.92,178.86,7.94983252]
[1747941398600,15.40901839,178.91,178.86,44.06983252]
[1747941398803,15.40901839,178.91,178.86,62.12]
[1747941399005,19.56400223,178.9,178.86,62.12]
[1747941400291,19.56400223,178.9,178.86,36.12]
[1747941400494,34.97302062,178.9,178.86,36.12]
[1747941401091,19.56400223,178.9,178.86,36.12]
[1747941406298,34.97302062,178.9,178.86,36.12]
[1747941407201,19.56400223,178.9,178.86,36.12]
[1747941411222,13.97428731,178.9,178.86,36.12]
[1747941412727,19.56400223,178.9,178.86,36.12]
[1747941416809,18.79181043,178.89,178.86,36.12]
[1747941418120,19.56400223,178.9,178.86,36.12]
[1747941418433,19.56400223,178.9,178.85,36.1]
[1747941420230,34.97302062,178.9,178.85,36.1]
[1747941420838,18.79181043,178.89,178.85,36.1]
[1747941422045,5.59033989,178.88,178.85,36.1]
[1747941424444,18.79181043,178.87,178.85,36.1]
[1747941425623,5.59033989,178.88,178.85,36.1]